Department Family,Entity,Date,Expense Type,Expense Area,Supplier,Transaction Number,AP Amount,Description,Supplier Postcode,Purchase Invoice Number
Department of Health,NHS North East Lincolnshire CCG,28/02/2021,Recharge : Received,PRIMARY CARE IT,SYNANETICS LTD,35480877,"96,000.00",,HG4 3BS,INV00297
Department of Health,NHS North East Lincolnshire CCG,28/02/2021,Clinical&Medical-Clinical Other,PATIENT TRANSPORT,THAMES AMBULANCE SERVICE LTD,35490798,"28,302.56",https://nww.einvoice-prod.sbs.nhs.uk:8179/invoicepdf/0e3a5d74-71da-56e9-b43c-9c0655d3d5bf,LN6 3AH,22183
Department of Health,NHS North East Lincolnshire CCG,28/02/2021,Clinical&Medical-Clinical Other,PATIENT TRANSPORT,THAMES AMBULANCE SERVICE LTD,35490805,"87,553.72",https://nww.einvoice-prod.sbs.nhs.uk:8179/invoicepdf/6a7c0945-905b-5bea-9a4a-f8c52a583dc8,LN6 3AH,22181
Department of Health,NHS North East Lincolnshire CCG,28/02/2021,Recharge : Received,PRIMARY CARE IT,N3I LTD,35528080,"310,440.00",https://nww.einvoice-prod.sbs.nhs.uk:8179/invoicepdf/e622540b-1101-5238-b1e1-95744f147dfc,HU3 4AE,326
Department of Health,NHS North East Lincolnshire CCG,28/02/2021,Clinical&Medical-Independent Sector,OUT OF HOURS,CORE CARE LINKS,35581243,"111,217.35",https://nww.einvoice-prod.sbs.nhs.uk:8179/invoicepdf/d5cdd5e0-d654-5231-a949-16f4314dd3a5,DN34 5LP,1203
Department of Health,NHS North East Lincolnshire CCG,28/02/2021,Clinical&Medical-Independent Sector,OUT OF HOURS,CORE CARE LINKS,35581243,"9,052.75",,DN34 5LP,1203
Department of Health,NHS North East Lincolnshire CCG,28/02/2021,Clinical&Medical-Voluntary Sector,PROGRAMME PROJECTS,NORTH BANK FORUM,35581250,"25,000.00",,HU3 2LL,SI708
Department of Health,NHS North East Lincolnshire CCG,28/02/2021,Clinical&Medical-Voluntary Sector,CHILD AND ADOLESCENT MENTAL HEALTH,NORTH EAST LINCOLNSHIRE COUNCIL,35581263,"63,336.00",,DN31 1HU,S1771523
Department of Health,NHS North East Lincolnshire CCG,28/02/2021,Clinical&Medical-Voluntary Sector,CHILD AND ADOLESCENT MENTAL HEALTH,NORTH EAST LINCOLNSHIRE COUNCIL,35581273,"53,636.00",,DN31 1HU,S1771723
Department of Health,NHS North East Lincolnshire CCG,28/02/2021,Clinical&Medical-Clinical Other,PRC DELEGATED CO-COMMISSIONING,NAVIGO,35581291,"3,750.00",,DN32 0QE,SALINV6085
Department of Health,NHS North East Lincolnshire CCG,28/02/2021,Clinical&Medical-Not For Profit,MENTAL HEALTH CONTRACTS,NAVIGO,35581291,"2,103,782.00",https://nww.einvoice-prod.sbs.nhs.uk:8179/invoicepdf/48efaab8-8996-531f-86ae-702054634051,DN32 0QE,SALINV6085
Department of Health,NHS North East Lincolnshire CCG,28/02/2021,Clinical&Medical-Not For Profit,MENTAL HEALTH CONTRACTS,NAVIGO,35581291,"6,533.00",,DN32 0QE,SALINV6085
Department of Health,NHS North East Lincolnshire CCG,28/02/2021,Soc Care-Other Soc Care,ASC SLA/CONTRACTS,NAVIGO,35581291,"260,573.00",,DN32 0QE,SALINV6085
Department of Health,NHS North East Lincolnshire CCG,28/02/2021,Clinical&Medical-Othe Public Sector,CHILD AND ADOLESCENT MENTAL HEALTH,NORTH EAST LINCOLNSHIRE COUNCIL,35581301,"255,645.00",,DN31 1HU,S1781493
Department of Health,NHS North East Lincolnshire CCG,28/02/2021,Clinical&Medical-Othe Public Sector,CHILDREN AND YOUNG PERSONS PALLIATIVE CARE,NORTH EAST LINCOLNSHIRE COUNCIL,35581301,"13,165.00",,DN31 1HU,S1781493
Department of Health,NHS North East Lincolnshire CCG,28/02/2021,Clinical&Medical-Othe Public Sector,COMMISSIONING - NON ACUTE,NORTH EAST LINCOLNSHIRE COUNCIL,35581301,"37,016.00",,DN31 1HU,S1781493
Department of Health,NHS North East Lincolnshire CCG,28/02/2021,Clinical&Medical-Commercial Sector,PLANNED CARE,VIRGIN CARE EAST RIDING LLP,35581310,"86,043.00",,W4A 4GE,301629002
Department of Health,NHS North East Lincolnshire CCG,28/02/2021,Clinical&Medical-Independent Sector,COMMUNITY SERVICES,YARBOROUGH CLEE CARE LTD,35581319,"110,905.00",https://nww.einvoice-prod.sbs.nhs.uk:8179/invoicepdf/bfdcd720-11d2-54c1-8929-3801909950d0,DN34 4GB,1957
Department of Health,NHS North East Lincolnshire CCG,28/02/2021,Clinical&Medical-Commercial Sector,PLANNED CARE,360 CARE LTD,35581343,"37,233.00",https://nww.einvoice-prod.sbs.nhs.uk:8179/invoicepdf/2b1d203e-f17b-5d95-a14b-cf741cf0640e,DN31 2BH,36168
Department of Health,NHS North East Lincolnshire CCG,28/02/2021,Clinical&Medical-Clinical Other,PRC DELEGATED CO-COMMISSIONING,CARE PLUS GROUP LTD,35581353,"18,333.00",,DN32 7DH,16229
Department of Health,NHS North East Lincolnshire CCG,28/02/2021,Clinical&Medical-Independent Sector,COMMUNITY SERVICES,CARE PLUS GROUP LTD,35581353,"29,166.00",,DN32 7DH,16229
Department of Health,NHS North East Lincolnshire CCG,28/02/2021,Clinical&Medical-Not For Profit,COMMUNITY SERVICES,CARE PLUS GROUP LTD,35581353,"851,348.00",https://nww.einvoice-prod.sbs.nhs.uk:8179/invoicepdf/b70d7dc4-dd52-5eb0-a7c7-dbcf9725183c,DN32 7DH,16229
Department of Health,NHS North East Lincolnshire CCG,28/02/2021,Clinical&Medical-Not For Profit,COMMUNITY SERVICES,CARE PLUS GROUP LTD,35581353,"537,402.00",,DN32 7DH,16229
Department of Health,NHS North East Lincolnshire CCG,28/02/2021,Soc Care-Other Soc Care,ASC SLA/CONTRACTS,CARE PLUS GROUP LTD,35581353,"283,731.00",,DN32 7DH,16229
Department of Health,NHS North East Lincolnshire CCG,28/02/2021,C&M-PMS Contract Value,PRC DELEGATED CO-COMMISSIONING,BEACON MEDICAL,35591487,"102,173.04",BABALP,DN35 8EB,KHU000042434
Department of Health,NHS North East Lincolnshire CCG,28/02/2021,C&M-PMS DES Learn Dsblty Hlth Chk,PRC DELEGATED CO-COMMISSIONING,BEACON MEDICAL,35591487,"3,220.00",LEARNP,DN35 8EB,KHU000042434
Department of Health,NHS North East Lincolnshire CCG,28/02/2021,C&M-PMS PCN DES Participation,PRC DELEGATED CO-COMMISSIONING,BEACON MEDICAL,35591487,"1,928.45",PARTIP,DN35 8EB,KHU000042434
Department of Health,NHS North East Lincolnshire CCG,28/02/2021,C&M-PMS QOF Aspiration,PRC DELEGATED CO-COMMISSIONING,BEACON MEDICAL,35591487,"10,941.21",QUASPP,DN35 8EB,KHU000042434
Department of Health,NHS North East Lincolnshire CCG,28/02/2021,C&M-PMS Contract Value,PRC DELEGATED CO-COMMISSIONING,DR B BISWAS,35591489,"19,546.92",BABALP,DN35 7DL,KHU000042436
Department of Health,NHS North East Lincolnshire CCG,28/02/2021,C&M-PMS PCN DES Participation,PRC DELEGATED CO-COMMISSIONING,DR B BISWAS,35591489,368.94,PARTIP,DN35 7DL,KHU000042436
Department of Health,NHS North East Lincolnshire CCG,28/02/2021,C&M-PMS PCO Other,PRC DELEGATED CO-COMMISSIONING,DR B BISWAS,35591489,"1,950.00",CQCRP,DN35 7DL,KHU000042436
Department of Health,NHS North East Lincolnshire CCG,28/02/2021,C&M-PMS Prem Notional Rent,PRC DELEGATED CO-COMMISSIONING,DR B BISWAS,35591489,"1,866.67",NRENT,DN35 7DL,KHU000042436
Department of Health,NHS North East Lincolnshire CCG,28/02/2021,C&M-PMS QOF Aspiration,PRC DELEGATED CO-COMMISSIONING,DR B BISWAS,35591489,"2,152.61",QUASPP,DN35 7DL,KHU000042436
Department of Health,NHS North East Lincolnshire CCG,28/02/2021,C&M-PMS Contract Value,PRC DELEGATED CO-COMMISSIONING,DR GG DE & PARTNERS,35591491,"34,220.45",BABALP,DN312BH,KHU000042438
Department of Health,NHS North East Lincolnshire CCG,28/02/2021,C&M-PMS DES Learn Dsblty Hlth Chk,PRC DELEGATED CO-COMMISSIONING,DR GG DE & PARTNERS,35591491,"3,220.00",LEARNP,DN312BH,KHU000042438
Department of Health,NHS North East Lincolnshire CCG,28/02/2021,C&M-PMS List Size Adjustment,PRC DELEGATED CO-COMMISSIONING,DR GG DE & PARTNERS,35591491,"1,075.57",LISTAP,DN312BH,KHU000042438
Department of Health,NHS North East Lincolnshire CCG,28/02/2021,C&M-PMS PCN DES Participation,PRC DELEGATED CO-COMMISSIONING,DR GG DE & PARTNERS,35591491,645.89,PARTIP,DN312BH,KHU000042438
Department of Health,NHS North East Lincolnshire CCG,28/02/2021,C&M-PMS PCO Other,PRC DELEGATED CO-COMMISSIONING,DR GG DE & PARTNERS,35591491,"3,064.00",CQCRP,DN312BH,KHU000042438
Department of Health,NHS North East Lincolnshire CCG,28/02/2021,C&M-PMS QOF Aspiration,PRC DELEGATED CO-COMMISSIONING,DR GG DE & PARTNERS,35591491,"3,555.36",QUASPP,DN312BH,KHU000042438
Department of Health,NHS North East Lincolnshire CCG,28/02/2021,C&M-PMS DES Extended Hours Access,PRC DELEGATED CO-COMMISSIONING,DR R MATHEWS,35591494,"-11,358.33",EXTHDP,DN313AE,KHU000042441
Department of Health,NHS North East Lincolnshire CCG,28/02/2021,C&M-PMS List Size Adjustment,PRC DELEGATED CO-COMMISSIONING,DR R MATHEWS,35591494,-717.85,LISTAP,DN313AE,KHU000042441
Department of Health,NHS North East Lincolnshire CCG,28/02/2021,C&M-PMS Out of Hours Opt Outs,PRC DELEGATED CO-COMMISSIONING,DR R MATHEWS,35591494,"-1,571.69",APMOOH,DN313AE,KHU000042441
Department of Health,NHS North East Lincolnshire CCG,28/02/2021,C&M-PMS PCN DES Clinical Director,PRC DELEGATED CO-COMMISSIONING,DR R MATHEWS,35591494,"-5,655.67",CLINDP,DN313AE,KHU000042441
Department of Health,NHS North East Lincolnshire CCG,28/02/2021,C&M-PMS PCN DES PCN support,LOCAL ENHANCED SERVICES,DR R MATHEWS,35591494,"-11,750.00",PCNSUP,DN313AE,KHU000042441
Department of Health,NHS North East Lincolnshire CCG,28/02/2021,ME-PMS GP Pension EEs-PMS,PRC DELEGATED CO-COMMISSIONING,DR R MATHEWS,35591494,"-5,437.50",SUPCEE,DN313AE,KHU000042441
Department of Health,NHS North East Lincolnshire CCG,28/02/2021,ME-PMS GP Pension ERs Adjs - PMS,PRC DELEGATED CO-COMMISSIONING,DR R MATHEWS,35591494,"-5,392.50",SUPCER,DN313AE,KHU000042441
Department of Health,NHS North East Lincolnshire CCG,28/02/2021,C&M- PCN DES CARE HOME PREMIUM,PRC DELEGATED CO-COMMISSIONING,DR R MATHEWS,35591495,"6,750.00",CHOMPP,DN313AE,KHU000042442
Department of Health,NHS North East Lincolnshire CCG,28/02/2021,C&M-PMS Contract Value,PRC DELEGATED CO-COMMISSIONING,DR R MATHEWS,35591495,"33,653.00",BABALP,DN313AE,KHU000042442
Department of Health,NHS North East Lincolnshire CCG,28/02/2021,C&M-PMS DES Extended Hours Access,PRC DELEGATED CO-COMMISSIONING,DR R MATHEWS,35591495,"22,716.66",EXTHDP,DN313AE,KHU000042442
Department of Health,NHS North East Lincolnshire CCG,28/02/2021,C&M-PMS PCN DES Clinical Director,PRC DELEGATED CO-COMMISSIONING,DR R MATHEWS,35591495,"11,311.34",CLINDP,DN313AE,KHU000042442
Department of Health,NHS North East Lincolnshire CCG,28/02/2021,C&M-PMS PCN DES PCN support,LOCAL ENHANCED SERVICES,DR R MATHEWS,35591495,"23,500.00",PCNSUP,DN313AE,KHU000042442
Department of Health,NHS North East Lincolnshire CCG,28/02/2021,C&M-PMS PCN DES Participation,PRC DELEGATED CO-COMMISSIONING,DR R MATHEWS,35591495,635.18,PARTIP,DN313AE,KHU000042442
Department of Health,NHS North East Lincolnshire CCG,28/02/2021,C&M-PMS Prem Service Charges,PRC DELEGATED CO-COMMISSIONING,DR R MATHEWS,35591495,"2,347.50",PREMSP,DN313AE,KHU000042442
Department of Health,NHS North East Lincolnshire CCG,28/02/2021,C&M-PMS QOF Aspiration,PRC DELEGATED CO-COMMISSIONING,DR R MATHEWS,35591495,"3,118.15",QUASPP,DN313AE,KHU000042442
Department of Health,NHS North East Lincolnshire CCG,28/02/2021,C&M- PCN DES CARE HOME PREMIUM,PRC DELEGATED CO-COMMISSIONING,HUMBERVIEW SURGERY,35591497,"2,625.00",CHOMPA,DN313AE,KHU000042444
Department of Health,NHS North East Lincolnshire CCG,28/02/2021,C&M-APMS Contract Value,PRC DELEGATED CO-COMMISSIONING,HUMBERVIEW SURGERY,35591497,"15,482.82",APMADD,DN313AE,KHU000042444
Department of Health,NHS North East Lincolnshire CCG,28/02/2021,C&M-APMS DES Extended Hours Access,PRC DELEGATED CO-COMMISSIONING,HUMBERVIEW SURGERY,35591497,"9,477.21",ZEXTA,DN313AE,KHU000042444
Department of Health,NHS North East Lincolnshire CCG,28/02/2021,C&M-APMS List Size Adjustment,PRC DELEGATED CO-COMMISSIONING,HUMBERVIEW SURGERY,35591497,262.70,LISTAA,DN313AE,KHU000042444
Department of Health,NHS North East Lincolnshire CCG,28/02/2021,C&M-APMS PCN DES Clinical Director,PRC DELEGATED CO-COMMISSIONING,HUMBERVIEW SURGERY,35591497,"4,709.21",CLINDA,DN313AE,KHU000042444
Department of Health,NHS North East Lincolnshire CCG,28/02/2021,C&M-APMS PCN DES PCN support,LOCAL ENHANCED SERVICES,HUMBERVIEW SURGERY,35591497,"9,797.25",PCNSUA,DN313AE,KHU000042444
Department of Health,NHS North East Lincolnshire CCG,28/02/2021,C&M-APMS Prem Rates,PRC DELEGATED CO-COMMISSIONING,HUMBERVIEW SURGERY,35591497,399.00,RANDRA,DN313AE,KHU000042444
Department of Health,NHS North East Lincolnshire CCG,28/02/2021,C&M-APMS Prem Service Charges,PRC DELEGATED CO-COMMISSIONING,HUMBERVIEW SURGERY,35591497,"2,304.95",PREMSA,DN313AE,KHU000042444
Department of Health,NHS North East Lincolnshire CCG,28/02/2021,C&M-PMS DES Learn Dsblty Hlth Chk,PRC DELEGATED CO-COMMISSIONING,HUMBERVIEW SURGERY,35591497,140.00,LEARNP,DN313AE,KHU000042444
Department of Health,NHS North East Lincolnshire CCG,28/02/2021,C&M-PMS PCN DES Participation,PRC DELEGATED CO-COMMISSIONING,HUMBERVIEW SURGERY,35591497,292.23,PARTIP,DN313AE,KHU000042444
Department of Health,NHS North East Lincolnshire CCG,28/02/2021,C&M-PMS QOF Aspiration,PRC DELEGATED CO-COMMISSIONING,HUMBERVIEW SURGERY,35591497,"1,561.55",QUASPP,DN313AE,KHU000042444
Department of Health,NHS North East Lincolnshire CCG,28/02/2021,C&M-PMS Contract Value,PRC DELEGATED CO-COMMISSIONING,LITTLEFIELD,35591499,"42,845.17",BABALP,DN34 4GB,KHU000042446
Department of Health,NHS North East Lincolnshire CCG,28/02/2021,C&M-PMS DES Learn Dsblty Hlth Chk,PRC DELEGATED CO-COMMISSIONING,LITTLEFIELD,35591499,"1,260.00",LEARNP,DN34 4GB,KHU000042446
Department of Health,NHS North East Lincolnshire CCG,28/02/2021,C&M-PMS List Size Adjustment,PRC DELEGATED CO-COMMISSIONING,LITTLEFIELD,35591499,841.60,LISTAP,DN34 4GB,KHU000042446
Department of Health,NHS North East Lincolnshire CCG,28/02/2021,C&M-PMS PCN DES Participation,PRC DELEGATED CO-COMMISSIONING,LITTLEFIELD,35591499,808.68,PARTIP,DN34 4GB,KHU000042446
Department of Health,NHS North East Lincolnshire CCG,28/02/2021,C&M-PMS QOF Aspiration,PRC DELEGATED CO-COMMISSIONING,LITTLEFIELD,35591499,"3,947.82",QUASPP,DN34 4GB,KHU000042446
Department of Health,NHS North East Lincolnshire CCG,28/02/2021,C&M-PMS Contract Value,PRC DELEGATED CO-COMMISSIONING,RAJ MEDICAL CENTRE,35591501,"47,909.54",BABALP,DN34 5LP,KHU000042448
Department of Health,NHS North East Lincolnshire CCG,28/02/2021,C&M-PMS PCN DES Participation,PRC DELEGATED CO-COMMISSIONING,RAJ MEDICAL CENTRE,35591501,904.26,PARTIP,DN34 5LP,KHU000042448
Department of Health,NHS North East Lincolnshire CCG,28/02/2021,C&M-PMS QOF Aspiration,PRC DELEGATED CO-COMMISSIONING,RAJ MEDICAL CENTRE,35591501,"4,996.39",QUASPP,DN34 5LP,KHU000042448
Department of Health,NHS North East Lincolnshire CCG,28/02/2021,C&M-PMS DES Extended Hours Access,PRC DELEGATED CO-COMMISSIONING,ROXTON PRACTICE,35591503,"-4,487.87",EXTHDP,DN40 1JW,KHU000042450
Department of Health,NHS North East Lincolnshire CCG,28/02/2021,C&M-PMS DES Patient Participation,PRC DELEGATED CO-COMMISSIONING,ROXTON PRACTICE,35591503,-666.58,PATPAP,DN40 1JW,KHU000042450
Department of Health,NHS North East Lincolnshire CCG,28/02/2021,C&M-PMS List Size Adjustment,PRC DELEGATED CO-COMMISSIONING,ROXTON PRACTICE,35591503,"-145,417.25",LISTAP,DN40 1JW,KHU000042450
Department of Health,NHS North East Lincolnshire CCG,28/02/2021,C&M-PMS Out of Hours Opt Outs,PRC DELEGATED CO-COMMISSIONING,ROXTON PRACTICE,35591503,"-27,257.82",APMOOH,DN40 1JW,KHU000042450
Department of Health,NHS North East Lincolnshire CCG,28/02/2021,C&M-PMS PCN DES Clinical Director,PRC DELEGATED CO-COMMISSIONING,ROXTON PRACTICE,35591503,"-2,234.65",CLINDP,DN40 1JW,KHU000042450
Department of Health,NHS North East Lincolnshire CCG,28/02/2021,C&M-PMS PCN DES PCN support,LOCAL ENHANCED SERVICES,ROXTON PRACTICE,35591503,"-4,642.63",PCNSUP,DN40 1JW,KHU000042450
Department of Health,NHS North East Lincolnshire CCG,28/02/2021,ME - PMS TPS Added Years Adj EEs,PRC DELEGATED CO-COMMISSIONING,ROXTON PRACTICE,35591503,-434.88,URLS,DN40 1JW,KHU000042450
Department of Health,NHS North East Lincolnshire CCG,28/02/2021,ME-PMS GP Pension EEs-PMS,PRC DELEGATED CO-COMMISSIONING,ROXTON PRACTICE,35591503,"-14,810.86",SUPCEE,DN40 1JW,KHU000042450
Department of Health,NHS North East Lincolnshire CCG,28/02/2021,ME-PMS GP Pension ERs Adjs - PMS,PRC DELEGATED CO-COMMISSIONING,ROXTON PRACTICE,35591503,"-15,416.28",SUPCER,DN40 1JW,KHU000042450
Department of Health,NHS North East Lincolnshire CCG,28/02/2021,C&M- PCN DES CARE HOME PREMIUM,PRC DELEGATED CO-COMMISSIONING,ROXTON PRACTICE,35591504,"3,097.50",CHOMPP,DN40 1JW,KHU000042451
Department of Health,NHS North East Lincolnshire CCG,28/02/2021,C&M-PMS Contract Value,PRC DELEGATED CO-COMMISSIONING,ROXTON PRACTICE,35591504,"252,858.52",BABALP,DN40 1JW,KHU000042451
Department of Health,NHS North East Lincolnshire CCG,28/02/2021,C&M-PMS DES Extended Hours Access,PRC DELEGATED CO-COMMISSIONING,ROXTON PRACTICE,35591504,"8,975.74",EXTHDP,DN40 1JW,KHU000042451
Department of Health,NHS North East Lincolnshire CCG,28/02/2021,C&M-PMS List Size Adjustment,PRC DELEGATED CO-COMMISSIONING,ROXTON PRACTICE,35591504,"228,116.23",LISTAP,DN40 1JW,KHU000042451
Department of Health,NHS North East Lincolnshire CCG,28/02/2021,C&M-PMS PCN DES Clinical Director,PRC DELEGATED CO-COMMISSIONING,ROXTON PRACTICE,35591504,"4,469.30",CLINDP,DN40 1JW,KHU000042451
Department of Health,NHS North East Lincolnshire CCG,28/02/2021,C&M-PMS PCN DES PCN support,LOCAL ENHANCED SERVICES,ROXTON PRACTICE,35591504,"9,285.26",PCNSUP,DN40 1JW,KHU000042451
Department of Health,NHS North East Lincolnshire CCG,28/02/2021,C&M-PMS PCN DES Participation,PRC DELEGATED CO-COMMISSIONING,ROXTON PRACTICE,35591504,"5,131.79",PARTIP,DN40 1JW,KHU000042451
Department of Health,NHS North East Lincolnshire CCG,28/02/2021,C&M-PMS Prem Rates,PRC DELEGATED CO-COMMISSIONING,ROXTON PRACTICE,35591504,"1,989.00",RANDRP,DN40 1JW,KHU000042451
Department of Health,NHS North East Lincolnshire CCG,28/02/2021,C&M-PMS QOF Aspiration,PRC DELEGATED CO-COMMISSIONING,ROXTON PRACTICE,35591504,"21,075.27",QUASPP,DN40 1JW,KHU000042451
Department of Health,NHS North East Lincolnshire CCG,28/02/2021,C&M-APMS Contract Value,PRC DELEGATED CO-COMMISSIONING,OPEN DOOR,35591505,"33,687.18",APMADD,DN32 7DL,KHU000042452
Department of Health,NHS North East Lincolnshire CCG,28/02/2021,C&M-APMS DES Violent Patients,PRC DELEGATED CO-COMMISSIONING,OPEN DOOR,35591505,"1,291.77",DEVIOA,DN32 7DL,KHU000042452
Department of Health,NHS North East Lincolnshire CCG,28/02/2021,C&M-APMS List Size Adjustment,PRC DELEGATED CO-COMMISSIONING,OPEN DOOR,35591505,"1,246.05",LISTAA,DN32 7DL,KHU000042452
Department of Health,NHS North East Lincolnshire CCG,28/02/2021,C&M-APMS Prem Water Rates,PRC DELEGATED CO-COMMISSIONING,OPEN DOOR,35591505,"1,003.59",RAMWA,DN32 7DL,KHU000042452
Department of Health,NHS North East Lincolnshire CCG,28/02/2021,C&M-APMS QOF Aspiration,PRC DELEGATED CO-COMMISSIONING,OPEN DOOR,35591505,68.07,ASPIRA,DN32 7DL,KHU000042452
Department of Health,NHS North East Lincolnshire CCG,28/02/2021,C&M-PMS PCN DES Participation,PRC DELEGATED CO-COMMISSIONING,OPEN DOOR,35591505,244.50,PARTIP,DN32 7DL,KHU000042452
Department of Health,NHS North East Lincolnshire CCG,28/02/2021,C&M-PMS QOF Aspiration,PRC DELEGATED CO-COMMISSIONING,OPEN DOOR,35591505,"1,086.62",QUASPP,DN32 7DL,KHU000042452
Department of Health,NHS North East Lincolnshire CCG,28/02/2021,C&M-PMS Contract Value,PRC DELEGATED CO-COMMISSIONING,DR AP KUMAR,35591507,"29,696.83",BABALP,DN31 3AE,KHU000042456
Department of Health,NHS North East Lincolnshire CCG,28/02/2021,C&M-PMS DES Learn Dsblty Hlth Chk,PRC DELEGATED CO-COMMISSIONING,DR AP KUMAR,35591507,840.00,LEARNP,DN31 3AE,KHU000042456
Department of Health,NHS North East Lincolnshire CCG,28/02/2021,C&M-PMS PCN DES Participation,PRC DELEGATED CO-COMMISSIONING,DR AP KUMAR,35591507,560.51,PARTIP,DN31 3AE,KHU000042456
Department of Health,NHS North East Lincolnshire CCG,28/02/2021,C&M-PMS Prem Actual Rent,PRC DELEGATED CO-COMMISSIONING,DR AP KUMAR,35591507,"1,884.23",RENT,DN31 3AE,KHU000042456
Department of Health,NHS North East Lincolnshire CCG,28/02/2021,C&M-PMS Prem Rates,PRC DELEGATED CO-COMMISSIONING,DR AP KUMAR,35591507,747.00,RANDRP,DN31 3AE,KHU000042456
Department of Health,NHS North East Lincolnshire CCG,28/02/2021,C&M-PMS Prem Service Charges,PRC DELEGATED CO-COMMISSIONING,DR AP KUMAR,35591507,"2,717.15",PREMSP,DN31 3AE,KHU000042456
Department of Health,NHS North East Lincolnshire CCG,28/02/2021,C&M-PMS QOF Aspiration,PRC DELEGATED CO-COMMISSIONING,DR AP KUMAR,35591507,"3,076.63",QUASPP,DN31 3AE,KHU000042456
Department of Health,NHS North East Lincolnshire CCG,28/02/2021,C&M-PMS Contract Value,PRC DELEGATED CO-COMMISSIONING,CLEE MEDICAL CENTRE,35591509,"115,232.51",BABALP,DN35 7XE,KHU000042458
Department of Health,NHS North East Lincolnshire CCG,28/02/2021,C&M-PMS DES Learn Dsblty Hlth Chk,PRC DELEGATED CO-COMMISSIONING,CLEE MEDICAL CENTRE,35591509,280.00,LEARNP,DN35 7XE,KHU000042458
Department of Health,NHS North East Lincolnshire CCG,28/02/2021,C&M-PMS PCN DES Participation,PRC DELEGATED CO-COMMISSIONING,CLEE MEDICAL CENTRE,35591509,"2,174.94",PARTIP,DN35 7XE,KHU000042458
Department of Health,NHS North East Lincolnshire CCG,28/02/2021,C&M-PMS Prem Water Rates,PRC DELEGATED CO-COMMISSIONING,CLEE MEDICAL CENTRE,35591509,483.02,RAMWP,DN35 7XE,KHU000042458
Department of Health,NHS North East Lincolnshire CCG,28/02/2021,C&M-PMS QOF Aspiration,PRC DELEGATED CO-COMMISSIONING,CLEE MEDICAL CENTRE,35591509,"14,074.83",QUASPP,DN35 7XE,KHU000042458
Department of Health,NHS North East Lincolnshire CCG,28/02/2021,C&M-PMS Contract Value,PRC DELEGATED CO-COMMISSIONING,CHANTRY HEALTH GROUP,35591511,"51,586.02",BABALP,DN31 1QZ,KHU000042460
Department of Health,NHS North East Lincolnshire CCG,28/02/2021,C&M-PMS PCN DES Participation,PRC DELEGATED CO-COMMISSIONING,CHANTRY HEALTH GROUP,35591511,973.65,PARTIP,DN31 1QZ,KHU000042460
Department of Health,NHS North East Lincolnshire CCG,28/02/2021,C&M-PMS PCO Other,PRC DELEGATED CO-COMMISSIONING,CHANTRY HEALTH GROUP,35591511,"3,991.00",CQCRP,DN31 1QZ,KHU000042460
Department of Health,NHS North East Lincolnshire CCG,28/02/2021,C&M-PMS Prem Water Rates,PRC DELEGATED CO-COMMISSIONING,CHANTRY HEALTH GROUP,35591511,288.19,RAMWP,DN31 1QZ,KHU000042460
Department of Health,NHS North East Lincolnshire CCG,28/02/2021,C&M-PMS QOF Aspiration,PRC DELEGATED CO-COMMISSIONING,CHANTRY HEALTH GROUP,35591511,"5,570.92",QUASPP,DN31 1QZ,KHU000042460
Department of Health,NHS North East Lincolnshire CCG,28/02/2021,C&M-PMS Contract Value,PRC DELEGATED CO-COMMISSIONING,DR OZ QURESHI,35591513,"33,169.26",BABALP,DN35 0LN,KHU000042462
Department of Health,NHS North East Lincolnshire CCG,28/02/2021,C&M-PMS DES Learn Dsblty Hlth Chk,PRC DELEGATED CO-COMMISSIONING,DR OZ QURESHI,35591513,700.00,LEARNP,DN35 0LN,KHU000042462
Department of Health,NHS North East Lincolnshire CCG,28/02/2021,C&M-PMS List Size Adjustment,PRC DELEGATED CO-COMMISSIONING,DR OZ QURESHI,35591513,"1,201.59",LISTAP,DN35 0LN,KHU000042462
Department of Health,NHS North East Lincolnshire CCG,28/02/2021,C&M-PMS PCN DES Participation,PRC DELEGATED CO-COMMISSIONING,DR OZ QURESHI,35591513,626.05,PARTIP,DN35 0LN,KHU000042462
Department of Health,NHS North East Lincolnshire CCG,28/02/2021,C&M-PMS QOF Aspiration,PRC DELEGATED CO-COMMISSIONING,DR OZ QURESHI,35591513,"3,736.33",QUASPP,DN35 0LN,KHU000042462
Department of Health,NHS North East Lincolnshire CCG,28/02/2021,C&M-PMS Contract Value,PRC DELEGATED CO-COMMISSIONING,LYNTON PRACTICE LTD,35591519,"35,551.87",BABALP,DN35 0LN,KHU000042468
Department of Health,NHS North East Lincolnshire CCG,28/02/2021,C&M-PMS List Size Adjustment,PRC DELEGATED CO-COMMISSIONING,LYNTON PRACTICE LTD,35591519,646.90,LISTAP,DN35 0LN,KHU000042468
Department of Health,NHS North East Lincolnshire CCG,28/02/2021,C&M-PMS PCN DES Participation,PRC DELEGATED CO-COMMISSIONING,LYNTON PRACTICE LTD,35591519,671.02,PARTIP,DN35 0LN,KHU000042468
Department of Health,NHS North East Lincolnshire CCG,28/02/2021,C&M-PMS QOF Aspiration,PRC DELEGATED CO-COMMISSIONING,LYNTON PRACTICE LTD,35591519,"3,888.62",QUASPP,DN35 0LN,KHU000042468
Department of Health,NHS North East Lincolnshire CCG,28/02/2021,C&M-PMS Contract Value,PRC DELEGATED CO-COMMISSIONING,SCARTHO MEDICAL CENTRE,35591521,"106,103.97",BABALP,DN33 3JF,KHU000042470
Department of Health,NHS North East Lincolnshire CCG,28/02/2021,C&M-PMS PCN DES Participation,PRC DELEGATED CO-COMMISSIONING,SCARTHO MEDICAL CENTRE,35591521,"2,002.65",PARTIP,DN33 3JF,KHU000042470
Department of Health,NHS North East Lincolnshire CCG,28/02/2021,C&M-PMS QOF Aspiration,PRC DELEGATED CO-COMMISSIONING,SCARTHO MEDICAL CENTRE,35591521,"12,106.48",QUASPP,DN33 3JF,KHU000042470
Department of Health,NHS North East Lincolnshire CCG,28/02/2021,ME - PMS GP Prior Year ERs,PRC DELEGATED CO-COMMISSIONING,SCARTHO MEDICAL CENTRE,35591521,"11,324.25",PRYERP,DN33 3JF,KHU000042470
Department of Health,NHS North East Lincolnshire CCG,28/02/2021,ME-PMS GP Pension EEs Adjs - PMS,PRC DELEGATED CO-COMMISSIONING,SCARTHO MEDICAL CENTRE,35591521,"11,812.50",PENEEP,DN33 3JF,KHU000042470
Department of Health,NHS North East Lincolnshire CCG,28/02/2021,ME-PMS GP Pension ERs Adjs - PMS,PRC DELEGATED CO-COMMISSIONING,SCARTHO MEDICAL CENTRE,35591521,"12,582.50",PENERP,DN33 3JF,KHU000042470
Department of Health,NHS North East Lincolnshire CCG,28/02/2021,ME-PMS GP Prior Year EEs,PRC DELEGATED CO-COMMISSIONING,SCARTHO MEDICAL CENTRE,35591521,"10,631.25",PRYEEP,DN33 3JF,KHU000042470
Department of Health,NHS North East Lincolnshire CCG,28/02/2021,C&M-PMS Contract Value,PRC DELEGATED CO-COMMISSIONING,GREENLAND SURGERY,35591523,"21,808.89",BABALP,DN31 3AE,KHU000042472
Department of Health,NHS North East Lincolnshire CCG,28/02/2021,C&M-PMS List Size Adjustment,PRC DELEGATED CO-COMMISSIONING,GREENLAND SURGERY,35591523,489.35,LISTAP,DN31 3AE,KHU000042472
Department of Health,NHS North East Lincolnshire CCG,28/02/2021,C&M-PMS PCN DES Participation,PRC DELEGATED CO-COMMISSIONING,GREENLAND SURGERY,35591523,411.63,PARTIP,DN31 3AE,KHU000042472
Department of Health,NHS North East Lincolnshire CCG,28/02/2021,C&M-PMS Prem Rates,PRC DELEGATED CO-COMMISSIONING,GREENLAND SURGERY,35591523,549.00,RANDRP,DN31 3AE,KHU000042472
Department of Health,NHS North East Lincolnshire CCG,28/02/2021,C&M-PMS Prem Service Charges,PRC DELEGATED CO-COMMISSIONING,GREENLAND SURGERY,35591523,"2,724.95",PREMSP,DN31 3AE,KHU000042472
Department of Health,NHS North East Lincolnshire CCG,28/02/2021,C&M-PMS QOF Aspiration,PRC DELEGATED CO-COMMISSIONING,GREENLAND SURGERY,35591523,"1,986.58",QUASPP,DN31 3AE,KHU000042472
Department of Health,NHS North East Lincolnshire CCG,28/02/2021,C&M-PMS Contract Value,PRC DELEGATED CO-COMMISSIONING,WOODFORD MEDICAL CENTRE,35591526,"77,310.42",BABALP,DN34 4GB,KHU000042476
Department of Health,NHS North East Lincolnshire CCG,28/02/2021,C&M-PMS DES Learn Dsblty Hlth Chk,PRC DELEGATED CO-COMMISSIONING,WOODFORD MEDICAL CENTRE,35591526,560.00,LEARNP,DN34 4GB,KHU000042476
Department of Health,NHS North East Lincolnshire CCG,28/02/2021,C&M-PMS List Size Adjustment,PRC DELEGATED CO-COMMISSIONING,WOODFORD MEDICAL CENTRE,35591526,326.33,LISTAP,DN34 4GB,KHU000042476
Department of Health,NHS North East Lincolnshire CCG,28/02/2021,C&M-PMS PCN DES Participation,PRC DELEGATED CO-COMMISSIONING,WOODFORD MEDICAL CENTRE,35591526,"1,459.19",PARTIP,DN34 4GB,KHU000042476
Department of Health,NHS North East Lincolnshire CCG,28/02/2021,C&M-PMS QOF Aspiration,PRC DELEGATED CO-COMMISSIONING,WOODFORD MEDICAL CENTRE,35591526,"7,718.61",QUASPP,DN34 4GB,KHU000042476
Department of Health,NHS North East Lincolnshire CCG,28/02/2021,C&M-PMS Contract Value,PRC DELEGATED CO-COMMISSIONING,BIRKWOOD MEDICAL CENTRE,35591528,"68,730.32",BABALP,DN34 5DX,KHU000042478
Department of Health,NHS North East Lincolnshire CCG,28/02/2021,C&M-PMS PCN DES Participation,PRC DELEGATED CO-COMMISSIONING,BIRKWOOD MEDICAL CENTRE,35591528,"1,297.24",PARTIP,DN34 5DX,KHU000042478
Department of Health,NHS North East Lincolnshire CCG,28/02/2021,C&M-PMS QOF Aspiration,PRC DELEGATED CO-COMMISSIONING,BIRKWOOD MEDICAL CENTRE,35591528,"5,932.97",QUASPP,DN34 5DX,KHU000042478
Department of Health,NHS North East Lincolnshire CCG,28/02/2021,C&M-PMS Contract Value,PRC DELEGATED CO-COMMISSIONING,PELHAM MEDICAL CENTRE,35591530,"77,056.06",BABALP,DN31 1QZ,KHU000042480
Department of Health,NHS North East Lincolnshire CCG,28/02/2021,C&M-PMS DES Learn Dsblty Hlth Chk,PRC DELEGATED CO-COMMISSIONING,PELHAM MEDICAL CENTRE,35591530,"1,680.00",LEARNP,DN31 1QZ,KHU000042480
Department of Health,NHS North East Lincolnshire CCG,28/02/2021,C&M-PMS List Size Adjustment,PRC DELEGATED CO-COMMISSIONING,PELHAM MEDICAL CENTRE,35591530,588.48,LISTAP,DN31 1QZ,KHU000042480
Department of Health,NHS North East Lincolnshire CCG,28/02/2021,C&M-PMS PCN DES Participation,PRC DELEGATED CO-COMMISSIONING,PELHAM MEDICAL CENTRE,35591530,"1,454.39",PARTIP,DN31 1QZ,KHU000042480
Department of Health,NHS North East Lincolnshire CCG,28/02/2021,C&M-PMS PCO Doctors Ret Scheme,PRC DELEGATED CO-COMMISSIONING,PELHAM MEDICAL CENTRE,35591530,"7,999.84",GPRET,DN31 1QZ,KHU000042480
Department of Health,NHS North East Lincolnshire CCG,28/02/2021,C&M-PMS Prem Rates,PRC DELEGATED CO-COMMISSIONING,PELHAM MEDICAL CENTRE,35591530,"1,306.00",RANDRP,DN31 1QZ,KHU000042480
Department of Health,NHS North East Lincolnshire CCG,28/02/2021,C&M-PMS Prem Water Rates,PRC DELEGATED CO-COMMISSIONING,PELHAM MEDICAL CENTRE,35591530,288.20,RAMWP,DN31 1QZ,KHU000042480
Department of Health,NHS North East Lincolnshire CCG,28/02/2021,C&M-PMS QOF Aspiration,PRC DELEGATED CO-COMMISSIONING,PELHAM MEDICAL CENTRE,35591530,"7,787.74",QUASPP,DN31 1QZ,KHU000042480
Department of Health,NHS North East Lincolnshire CCG,28/02/2021,C&M-PMS Contract Value,PRC DELEGATED CO-COMMISSIONING,FIELDHOUSE MEDICAL GROUP,35596883,"96,694.49",BABALP,DN34 4GB,KHU000042454
Department of Health,NHS North East Lincolnshire CCG,28/02/2021,C&M-PMS DES Learn Dsblty Hlth Chk,PRC DELEGATED CO-COMMISSIONING,FIELDHOUSE MEDICAL GROUP,35596883,"1,540.00",LEARNP,DN34 4GB,KHU000042454
Department of Health,NHS North East Lincolnshire CCG,28/02/2021,C&M-PMS PCN DES Participation,PRC DELEGATED CO-COMMISSIONING,FIELDHOUSE MEDICAL GROUP,35596883,"1,825.05",PARTIP,DN34 4GB,KHU000042454
Department of Health,NHS North East Lincolnshire CCG,28/02/2021,C&M-PMS QOF Aspiration,PRC DELEGATED CO-COMMISSIONING,FIELDHOUSE MEDICAL GROUP,35596883,"10,036.31",QUASPP,DN34 4GB,KHU000042454
Department of Health,NHS North East Lincolnshire CCG,28/02/2021,Clinical&Medical-Not For Profit,MENTAL HEALTH CONTRACTS,NAVIGO,35612819,"125,819.82",https://nww.einvoice-prod.sbs.nhs.uk:8179/invoicepdf/30cfaf8d-65db-54f1-8680-8e3ae9f678a8,DN32 0QE,SALINV6092
Department of Health,NHS North East Lincolnshire CCG,28/02/2021,Clinical&Medical-Commercial Sector,LEARNING DIFFICULTIES,ELYSIUM HEALTHCARE LTD,35612821,"42,687.31",https://nww.einvoice-prod.sbs.nhs.uk:8179/invoicepdf/ff9a97f2-f0ea-50d0-893d-00ed74d37420,WD6 1JN,HLH00909
Department of Health,NHS North East Lincolnshire CCG,28/02/2021,LPF Management Fees,PRIMARY CARE IT,N3I LTD,35612854,"45,604.00",https://nww.einvoice-prod.sbs.nhs.uk:8179/invoicepdf/c84c7fea-a69d-5288-bd52-258b23230bb9,HU3 4AE,353
Department of Health,NHS North East Lincolnshire CCG,28/02/2021,Cont Care-Physical Disab (65+),CHC ADULT FULLY FUNDED,NORTH EAST LINCOLNSHIRE COUNCIL,35628306,"28,871.11",,DN31 1HU,S1779008
Department of Health,NHS North East Lincolnshire CCG,28/02/2021,Hcare Srv Rec NHS Trust-Contract Baseline,AMBULANCE SERVICES,EAST MIDLANDS AMBULANCE SERVICE NHS TRUST,35635672,"540,744.00",East Midlands Ambulance Service NHS Trust SLA Mar 21,NG18 4RG,5709264MAR21
Department of Health,NHS North East Lincolnshire CCG,28/02/2021,Hcare Srv Rec NHS Trust-Contract Baseline,ACUTE COMMISSIONING,HULL UNIVERSITY TEACHING HOSPITAL NHS TRUST,35635676,"962,332.00",Hull University Teaching Hospitals NHS Trust SLA Mar 21,BB3 0FG,5702853MAR21
Department of Health,NHS North East Lincolnshire CCG,28/02/2021,Hcare Srv Rec Fdtn Trust-Contract Baseline,ACUTE COMMISSIONING,NORTHERN LINCOLNSHIRE AND GOOLE HOSPITALS NHS FOUNDATION TRUST,35635681,"9,970,944.00",Northern Lincolnshire And Goole NHS Foundation Trust SLA Mar 21,DN33 2BA,527796MAR21
Department of Health,NHS North East Lincolnshire CCG,28/02/2021,Hcare Srv Rec Fdtn Trust-Contract Baseline,ACUTE COMMISSIONING,SHEFFIELD TEACHING HOSPITALS NHS FOUNDATION TRUST,35635686,"80,529.00",Sheffield Teaching Hospitals NHS Foundation Trust SLA Mar 21,S5 7AU,210286MAR21
Department of Health,NHS North East Lincolnshire CCG,28/02/2021,Hcare Srv Rec NHS Trust-Contract Baseline,ACUTE COMMISSIONING,LEEDS TEACHING HOSPITALS NHS TRUST,35635690,"46,376.00",Leeds Teaching Hospitals NHS Trust SLA Mar 21,LS9 7TF,209699MAR21
Department of Health,NHS North East Lincolnshire CCG,28/02/2021,C&M-PMS Prem Actual Rent,PRC DELEGATED CO-COMMISSIONING,NAVIGO,35642453,"35,698.50",https://nww.einvoice-prod.sbs.nhs.uk:8179/invoicepdf/66e3197e-b13e-5414-b134-9b26d0ceff52,DN32 0QE,SALINV6134
Department of Health,NHS North East Lincolnshire CCG,28/02/2021,Clinical&Medical-Clinical Other,COMMUNITY SERVICES,CARE PLUS GROUP LTD,35654776,"50,497.21",https://nww.einvoice-prod.sbs.nhs.uk:8179/invoicepdf/e0e6922d-ae7b-579f-832f-fdbc943fc7af,DN32 7DH,16219
Department of Health,NHS North East Lincolnshire CCG,28/02/2021,C&M-PMS LES LTC Case Management,LOCAL ENHANCED SERVICES,HUMBERVIEW SURGERY,35660660,"32,541.25",Freshney Pelham (Paying Humberview) Enhanced Primary Care Condition Monies Feb21,DN313AE,FEB21EPC1
Department of Health,NHS North East Lincolnshire CCG,28/02/2021,C&M-PMS LES LTC Case Management,LOCAL ENHANCED SERVICES,ROXTON PRACTICE,35660661,"30,916.14",Meridian (Paying Roxton) Enhanced Primary Care Condition Monies Feb21,DN40 1JW,FEB21EPC2
Department of Health,NHS North East Lincolnshire CCG,28/02/2021,C&M-PMS LES LTC Case Management,LOCAL ENHANCED SERVICES,DR R MATHEWS,35660662,"78,080.06",Panacea (Paying Dr Mathews) Enhanced Primary Care Condition Monies Feb21,DN313AE,FEB21EPC3
Department of Health,NHS North East Lincolnshire CCG,28/02/2021,C&M-GP PRACTICE REVENUE - PCTF,GP FORWARD VIEW,DR R MATHEWS,35660665,"46,989.00",Panacea (Paying Dr Mathews) Extended Access 2020/21 Monthly Monies M11,DN313AE,EXTACC21M11C
Department of Health,NHS North East Lincolnshire CCG,28/02/2021,Clinical&Medical-Othe Public Sector,CHILD AND ADOLESCENT MENTAL HEALTH,NORTH EAST LINCOLNSHIRE COUNCIL,35681344,"63,343.35",,DN31 1HU,S1771719
Department of Health,NHS North East Lincolnshire CCG,28/02/2021,Clinical&Medical-Independent Sector,ACUTE COMMISSIONING,NEW MEDICAL SYSTEMS LTD,35681405,"88,814.41",https://nww.einvoice-prod.sbs.nhs.uk:8179/invoicepdf/402b0025-c96e-5934-8d26-b3e9485afc26,SE1 6ES,000003921
Department of Health,NHS North East Lincolnshire CCG,28/02/2021,Clinical&Medical-Independent Sector,PLANNED CARE,INHEALTH PAIN MANAGEMENT SOLUTIONS LTD,35681455,"30,465.43",https://nww.einvoice-prod.sbs.nhs.uk:8179/invoicepdf/135cbfa8-4b6b-5bf9-a8d5-f9ee177e3f83,HP11 1JL,PMSIN001981
Department of Health,NHS North East Lincolnshire CCG,28/02/2021,Clinical&Medical-Commercial Sector,URGENT CARE,VOCARE LTD,35694916,"48,750.00",https://nww.einvoice-prod.sbs.nhs.uk:8179/invoicepdf/25a5f09e-19d3-5034-9104-029e7bc3f399,NE12 8EW,ARIN2600011748
Department of Health,NHS North East Lincolnshire CCG,28/02/2021,Clinical&Medical-Commercial Sector,URGENT CARE,VOCARE LTD,35694931,"48,750.00",https://nww.einvoice-prod.sbs.nhs.uk:8179/invoicepdf/342b8af2-a7c5-51dd-992d-fcaf703d4e98,NE12 8EW,ARIN2600011747
Department of Health,NHS North East Lincolnshire CCG,28/02/2021,Recharge : Received,PRIMARY CARE IT,N3I LTD,35716645,"96,812.18",,HU3 4AE,344
Department of Health,NHS North East Lincolnshire CCG,28/02/2021,C&M-PMS Cost of Drugs -Dispensing,LOCAL ENHANCED SERVICES,ROXTON PRACTICE,35766912,"-76,355.39",DRGREC,DN40 1JW,KHU000042629
Department of Health,NHS North East Lincolnshire CCG,28/02/2021,C&M-PMS Prsc Chrgs Cll&Rmttd by GPs,PRC DELEGATED CO-COMMISSIONING,ROXTON PRACTICE,35766912,-988.20,DRGPRX,DN40 1JW,KHU000042629
Department of Health,NHS North East Lincolnshire CCG,28/02/2021,C&M-PMS Cost of Drugs -Dispensing,LOCAL ENHANCED SERVICES,ROXTON PRACTICE,35766913,"141,250.67","DRGD,DRGADV",DN40 1JW,KHU000042630
Department of Health,NHS North East Lincolnshire CCG,28/02/2021,C&M-PMS Prof fees Dispensing,PRC DELEGATED CO-COMMISSIONING,ROXTON PRACTICE,35766913,"26,968.01",DRGDPF,DN40 1JW,KHU000042630
Department of Health,NHS North East Lincolnshire CCG,28/02/2021,C&M-PMS Prsc Chrgs Cll&Rmttd by GPs,LOCAL ENHANCED SERVICES,ROXTON PRACTICE,35766913,988.20,DRGPR,DN40 1JW,KHU000042630
Department of Health,NHS North East Lincolnshire CCG,28/02/2021,Clinical&Medical-Not For Profit,COMMUNITY SERVICES,CARE PLUS GROUP LTD,35775881,"98,604.00",https://nww.einvoice-prod.sbs.nhs.uk:8179/invoicepdf/6faa3137-aacb-57f4-a62e-85cecb5bd316,DN32 7DH,16243
Department of Health,NHS North East Lincolnshire CCG,28/02/2021,Clinical&Medical-Not For Profit,MENTAL HEALTH CONTRACTS,NAVIGO,35787654,"29,284.00",https://nww.einvoice-prod.sbs.nhs.uk:8179/invoicepdf/740e6998-2c58-5f65-97af-cbae2eef5c0c,DN32 0QE,SALINV6142
Department of Health,NHS North East Lincolnshire CCG,28/02/2021,Clinical&Medical-Not For Profit,COMMUNITY SERVICES,CARE PLUS GROUP LTD,35787661,"58,486.00",https://nww.einvoice-prod.sbs.nhs.uk:8179/invoicepdf/35903965-15c9-5e88-acff-9713f564cd89,DN32 7DH,16245
Department of Health,NHS North East Lincolnshire CCG,28/02/2021,Recharge : Received,PRIMARY CARE IT,CITY HEALTH CARE PARTNERSHIP CIC,35807406,"300,000.00",https://nww.einvoice-prod.sbs.nhs.uk:8179/invoicepdf/0fd85df1-d28e-5796-bc24-3b7c3a2be967,HU3 4AE,7410048099
Department of Health,NHS North East Lincolnshire CCG,28/02/2021,Clinical&Medical-Not For Profit,MENTAL HEALTH CONTRACTS,NAVIGO,35807407,"264,495.00",https://nww.einvoice-prod.sbs.nhs.uk:8179/invoicepdf/9ac68891-7a89-5956-8cad-7282cafeee07,DN32 0QE,SALINV6157
Department of Health,NHS North East Lincolnshire CCG,28/02/2021,Clinical&Medical-Not For Profit,MENTAL HEALTH CONTRACTS,NAVIGO,35807408,"75,000.00",https://nww.einvoice-prod.sbs.nhs.uk:8179/invoicepdf/01ae54a8-8313-576a-9b91-ed6b391b10aa,DN32 0QE,SALINV6161
Department of Health,NHS North East Lincolnshire CCG,28/02/2021,Clinical&Medical-Not For Profit,MENTAL HEALTH CONTRACTS,NAVIGO,35807409,"52,318.00",https://nww.einvoice-prod.sbs.nhs.uk:8179/invoicepdf/3c917c28-7dc7-5f51-89b8-da69713d534d,DN32 0QE,SALINV6158
